Cogmind - Beta 12 X1 @@@ ROGUE MODE // 2022.07.31 @ 07:06:37 Player: Exp. Geonium Core Result: Self-destructed Performance ------------- Evolutions (2) 1000 Regions Visited (6) 1200 Robots Destroyed (46) 230 Value Destroyed (1317) 1317 Prototype IDs (25) 500 Alien Tech Used (0) 0 Bonus (338) 338 TOTAL SCORE: 4585 Bonus ------- Follower Combat Kills 104 Entered Garrisons 200 Aligned with FarCom 300 Friendly Fire -266 Cogmind --------- Core Integrity 12/550 Matter 105/300 Energy 100/100 System Corruption 0% Temperature Cool (0) Movement Core (50) Location -8/Garrison Parts ------- > --- POWER (1) -------- (None) > --- PROPULSION (2) --- Heavy Treads > --- UTILITY (6) ------ Transport Network Coupler Advanced System Shield > --- WEAPON (2) ------- (None) > --- INVENTORY (5) ---- Ion Engine Chronowheel Hypervelocity Coil Gun Datajack Peak State ------------ > --- POWER ------------ Micro Nuclear Core > --- PROPULSION ------- Heavy Treads > --- UTILITY ---------- Transport Network Coupler Medium Insulated Plating > --- WEAPON ----------- Long-range Proton Cannon Hypervelocity Coil Gun > --- INVENTORY -------- Ion Engine Chronowheel Datajack [Rating: 34] Favorites ----------- Power Ion Engine Engine Ion Engine Power Core Micro Nuclear Core Propulsion Wheel Treads Light Treads Leg Aluminum Leg Wheel Wheel Hover Unit Aerolev Unit Utility High-capacity Storage Unit Storage High-capacity Storage Unit Processor Transport Network Coupler Hackware Advanced System Shield Protection Medium Insulated Plating Weapon Autogun Energy Gun Particle Gun Energy Cannon Long-range Proton Cannon Ballistic Gun Autogun Launcher Grenade Launcher Build | -11 -10 -10 -10 -9 -8 -8 ------- Run | Scr Mat Min Exi Min Mat Gar Slots Evolved 4 | . . . . . 4 . Power . | . . . . . . . Propulsion . | . . . . . . . Utility 4 | . . . . . 4 . Weapon . | . . . . . . . Parts Attached 43 | . 6 1 . 5 15 16 Power 2 | . . . . 1 1 . Engine 1 | . . . . 1 . . Core 1 | . . . . . 1 . Reactor . | . . . . . . . Propulsion 13 | . 3 1 . 3 2 4 Treads 3 | . 2 . . . . 1 Leg . | . . . . . . . Wheel 8 | . 1 1 . 3 2 1 Hover 2 | . . . . . . 2 Flight . | . . . . . . . Utility 12 | . 1 . . . 6 5 Device . | . . . . . . . Storage 1 | . 1 . . . . . Processor 1 | . . . . . 1 . Hackware 1 | . . . . . . 1 Protection 9 | . . . . . 5 4 Artifact . | . . . . . . . Weapon 16 | . 2 . . 1 6 7 Energy Gun 2 | . . . . . . 2 Energy Cannon 1 | . . . . . . 1 Ballistic Gun 9 | . 2 . . . 4 3 Ballistic Cannon . | . . . . . . . Launcher 4 | . . . . 1 2 1 Special Weapon . | . . . . . . . Impact Weapon . | . . . . . . . Slashing Weapon . | . . . . . . . Piercing Weapon . | . . . . . . . Special Melee Weapon . | . . . . . . . Unidentified Prototypes 2 | . . . . . . 2 Parts Lost 16 | . 1 2 . . 5 8 Power 2 | . . 1 . . 1 . Propulsion 6 | . 1 1 . . 1 3 Utility 2 | . . . . . 1 1 Weapon 6 | . . . . . 2 4 Highest Loss Streak 5 | . 1 2 . . 4 5 To Critical Strikes . | . . . . . . . Average Slot Usage (%) 75 | . 85 81 71 79 63 61 Engine 7 | . 14 10 . 8 1 . Core 1 | . . . . . 2 8 Treads 8 | . 22 11 . . . 1 Wheel 15 | . 4 16 28 28 18 9 Storage 12 | . 14 14 14 14 9 5 Processor 1 | . . . . . 3 9 Protection 3 | . . . . . 10 10 Ballistic Gun 23 | . 27 28 28 25 16 5 Naked Turns . | . . . . . . . Heaviest Build 81 | 14 51 51 46 51 81 74 Greatest Support 70 | 20 40 26 26 26 26 70 Greatest Overweight (x) 5 | . 5 5 1 2 5 4 Average Overweight (x) 1 | . 2 3 1 1 1 1 Largest Inventory Capacity 20 | . 20 20 20 20 20 20 Average Capacity 19 | . 19 20 20 20 20 13 Most Carried 19 | . 6 5 5 11 19 18 Average Carried 7 | . 4 4 4 8 11 10 Final Capacity 20 | 8 20 20 20 20 20 5 Final Carried 19 | 6 5 4 5 11 19 4 Class Distribution -------------------- 100% | Mutant Dominant Class ---------------- Mutant | -10/Materials Mutant | -10/Mines Mutant | -10/Exiles Mutant | -9/Mines Mutant | -8/Materials Mutant | -8/Garrison Resources | -11 -10 -10 -10 -9 -8 -8 ----------- Run | Scr Mat Min Exi Min Mat Gar Matter Collected 1403 | 200 276 230 . 21 413 263 Remotely . | . . . . . . . Salvage Created 1557 | . 417 178 . 18 652 292 Parts 91 | . 27 14 . 3 36 11 Haulers Intercepted 3 | . 1 . . . 2 . Recyclers Shooed 3 | . 2 . . . 1 . Parts Field Recycled . | . . . . . . . Retrieved Matter . | . . . . . . . Parts Self-Destructed . | . . . . . . . Prevented . | . . . . . . . Kills | -11 -10 -10 -10 -9 -8 -8 ------- Run | Scr Mat Min Exi Min Mat Gar Combat Hostiles Destroyed 34 | . 11 4 . 1 12 6 Guns 23 | . 11 4 . . 4 4 AOE 11 | . . . . 1 8 2 Classes Destroyed 10 | . 5 1 . . 3 1 Worker 2 | . 1 . . 1 . . Hauler 3 | . 1 . . . 2 . Recycler 2 | . 1 . . . 1 . Mechanic 1 | . . 1 . . . . Operator 2 | . . . . . 2 . Swarmer 9 | . 6 . . 1 2 . Grunt 22 | . 5 4 . . 10 3 Duelist 1 | . . . . . . 1 Sentry 1 | . . . . . 1 . Hunter 3 | . . . . . 1 2 Best Kill Streak 9 | . 4 2 . 1 9 3 Combat Bots Only 8 | . 3 2 . 1 8 3 Max Kills in Single Turn 2 | . 2 1 . 1 2 2 Gunslinging . | . . . . . . . Exploded 2 | . . . . 1 2 2 Melee . | . . . . . . . Uniques/NPCs Destroyed . | . . . . . . . Combat | -11 -10 -10 -10 -9 -8 -8 -------- Run | Scr Mat Min Exi Min Mat Gar Damage Taken 3221 | . 639 305 . 46 674 1557 Core 756 | . 150 68 . . 175 363 Absorbed by Shields . | . . . . . . . Core Remaining (%) 56 | 100 . . . 12 . . Volleys Fired 166 | . 44 25 . 6 52 39 Largest 2 | . 2 2 . 2 2 2 Hottest 73 | . 46 46 . 46 46 73 Shots Fired 280 | . 88 50 . 10 89 43 Gun 266 | . 88 50 . 8 79 41 Cannon . | . . . . . . . Launcher 14 | . . . . 2 10 2 Special . | . . . . . . . Kinetic 244 | . 88 50 . 8 79 19 Thermal 14 | . . . . . . 14 Explosive 14 | . . . . 2 10 2 Electromagnetic 8 | . . . . . . 8 Robot Hit Streak 13 | . 12 6 . 4 13 4 Robot Miss Streak 7 | . 3 2 . 2 7 6 Penetration Max 2 | . . . . . . 2 Secondary Targets 3 | . 2 1 . . . . Max Gunslinging Chain 1 | . 1 1 . . . . Shots Hit Robots 171 | . 56 32 . 5 56 22 Core Hits 90 | . 23 9 . 4 39 15 Critical Kills 1 | . . . . . . 1 Critical Parts Destroyed 2 | . . . . . . 2 Critical Strikes 4 | . . . . . . 4 Burn 1 | . . . . . . 1 Destroy 3 | . . . . . . 3 Melee Attacks . | . . . . . . . Impact . | . . . . . . . Slashing . | . . . . . . . Piercing . | . . . . . . . Sneak Attacks . | . . . . . . . Combat Hostiles . | . . . . . . . Follow-up Attacks . | . . . . . . . Damage Inflicted 3694 | . 760 515 . 216 1615 588 Guns 2498 | . 752 515 . 77 823 331 Cannons . | . . . . . . . Explosions 1188 | . . . . 139 792 257 Melee . | . . . . . . . Ramming 8 | . 8 . . . . . Kinetic 2280 | . 752 515 . 77 823 113 Thermal 144 | . . . . . . 144 Explosive 1188 | . . . . 139 792 257 Electromagnetic 74 | . . . . . . 74 Impact . | . . . . . . . Slashing . | . . . . . . . Piercing . | . . . . . . . Highest Corruption . | . . . . . . . Average Corruption . | . . . . . . . Corruption Purged . | . . . . . . . Corruption Blocked . | . . . . . . . Overload Shots . | . . . . . . . Overflow Damage 40 | . . . . 13 27 . Projectiles . | . . . . . . . Explosions 40 | . . . . 13 27 . Melee . | . . . . . . . Knockbacks . | . . . . . . . Impact . | . . . . . . . Kinetic . | . . . . . . . Secondary . | . . . . . . . Self-Inflicted Damage 66 | . 2 . . 14 . 50 Shots 3 | . . . . 1 . 2 Rammed 3 | . 3 . . . . . Targets Rammed 3 | . 3 . . . . . Kicked . | . . . . . . . Crushed . | . . . . . . . Highest Temperature 614 | . 12 38 . 6 336 614 Average Temperature 141 | . 5 14 . 4 160 234 Received Heat Transfer 891 | . 189 171 . . 252 279 Effects 10 | . . . . . 2 8 Shutdowns 3 | . . . . . . 3 Energy Bleed 1 | . . . . . 1 . Interference 1 | . . . . . . 1 Matter Decay 1 | . . . . . . 1 Short Circuit 2 | . . . . . 1 1 Damage (minor) 2 | . . . . . . 2 Siege Activations . | . . . . . . . Robots Corrupted . | . . . . . . . Combat Hostiles . | . . . . . . . Parts Fried . | . . . . . . . Impact Corruptions . | . . . . . . . Robots Melted . | . . . . . . . Combat Hostiles . | . . . . . . . Parts Melted 1 | . . . . . . 1 Heat Transferred 407 | . . . . . . 407 Parts Sabotaged . | . . . . . . . Parts Stolen . | . . . . . . . Parts Stripped . | . . . . . . . Power Chain Reactions . | . . . . . . . Missiles Intercepted . | . . . . . . . Alert | -11 -10 -10 -10 -9 -8 -8 ------- Run | Scr Mat Min Exi Min Mat Gar Peak Influence 330 | . 190 156 . 151 302 330 Initial 198 | . . . . . 58 198 Average 93 | . 62 86 . 19 144 265 Maximum Alert Level 1 | . . . . . 1 1 Low Security (%) 89 | . 100 100 . 100 83 24 Level 1 10 | . . . . . 16 75 Level 2 . | . . . . . . . Level 3 . | . . . . . . . Level 4 . | . . . . . . . Level 5 . | . . . . . . . High Security . | . . . . . . . Max Security . | . . . . . . . Squads Dispatched 4 | . 1 1 . . 2 . Investigation . | . . . . . . . Extermination . | . . . . . . . Reinforcement 2 | . 1 . . . 1 . Assault 1 | . . 1 . . . . Garrison 1 | . . . . . 1 . Intercept . | . . . . . . . Searches Triggered . | . . . . . . . Construction Impeded 1 | . . . . . 1 . Haulers Reinforced . | . . . . . . . Active Scanning Responses . | . . . . . . . Cargo Convoy Interrupts . | . . . . . . . Stealth | -11 -10 -10 -10 -9 -8 -8 --------- Run | Scr Mat Min Exi Min Mat Gar Distress Signals 2 | . 1 . . . 1 . Communications Jammed . | . . . . . . . Distress Signals . | . . . . . . . Times Spotted 66 | . 22 6 . 3 22 13 Peak Tracking Total 5 | . 3 2 . 3 5 5 Tactical Retreats 1 | . . . . . . 1 Traps | -11 -10 -10 -10 -9 -8 -8 ------- Run | Scr Mat Min Exi Min Mat Gar Traps Triggered 3 | . 1 . . . . 2 Indirectly . | . . . . . . . Trap Hack Attempts . | . . . . . . . Triggered . | . . . . . . . Disarmed . | . . . . . . . Reprogrammed . | . . . . . . . Reused . | . . . . . . . Traps Extracted . | . . . . . . . Installed . | . . . . . . . Triggered . | . . . . . . . Machines | -11 -10 -10 -10 -9 -8 -8 ---------- Run | Scr Mat Min Exi Min Mat Gar Machines Disabled 3 | . . 1 . 1 1 . Max in Single Turn 1 | . . . . 1 1 . Garrison Relay 1 | . . . . . . 1 Machines Sabotaged . | . . . . . . . Garrisons Compromised . | . . . . . . . Overloaded Fab Kills . | . . . . . . . Hacking | -11 -10 -10 -10 -9 -8 -8 --------- Run | Scr Mat Min Exi Min Mat Gar Machines Accessed 10 | . 3 . 1 . 5 1 Terminals 8 | . 3 . . . 4 1 Fabricators . | . . . . . . . Repair Stations . | . . . . . . . Recycling Units . | . . . . . . . Scanalyzers . | . . . . . . . Garrison Access 1 | . . . . . 1 . Total Hacks 22 | . 7 . 1 . 12 2 Successful 9 | . 1 . 1 . 7 . Failed 13 | . 6 . . . 5 2 Catastrophic 5 | . 3 . . . 2 . Database Lockouts . | . . . . . . . Manual 12 | . 4 . 1 . 7 . Terminals 19 | . 7 . . . 10 2 Fabricators . | . . . . . . . Repair Stations . | . . . . . . . Recycling Units . | . . . . . . . Scanalyzers . | . . . . . . . Garrison Access 2 | . . . . . 2 . Terminal Hacks 4 | . 1 . 1 . 2 . Branch Access Points 1 | . . . . . 1 . Terminal Index 1 | . . . . . 1 . Registered Components 1 | . 1 . . . . . EX-Prototype ID Bank 1 | . . . 1 . . . Fabricator Hacks . | . . . . . . . Repair Station Hacks . | . . . . . . . Recycling Unit Hacks . | . . . . . . . Scanalyzer . | . . . . . . . Garrison Access Hacks 1 | . . . . . 1 . Unlock Access 1 | . . . . . 1 . Unauthorized Hacks 4 | . . . . . 4 . Terminals 4 | . . . . . 4 . Track 1 | . . . . . 1 . Botnet 3 | . . . . . 3 . Fabricators . | . . . . . . . Repair Stations . | . . . . . . . Recycling Units . | . . . . . . . Scanalyzers . | . . . . . . . Garrison Access . | . . . . . . . Data Cores Recovered 2 | . . . . . 2 . Used 1 | . . . . . 1 . Hacking Detections 8 | . 3 . . . 4 1 Full Trace Events 3 | . 2 . . . . 1 Feedback Events . | . . . . . . . Feedback Blocked . | . . . . . . . Robot Schematics Acquired . | . . . . . . . Robots Built . | . . . . . . . Authchips . | . . . . . . . Time . | . . . . . . . Total Robot Build Rating . | . . . . . . . Part Schematics Acquired . | . . . . . . . Parts Built . | . . . . . . . Authchips . | . . . . . . . Time . | . . . . . . . Total Part Build Rating . | . . . . . . . Parts Repaired . | . . . . . . . Time . | . . . . . . . Parts Recycled . | . . . . . . . Recycled Matter . | . . . . . . . Retrieved Matter . | . . . . . . . Retrieved Components . | . . . . . . . Parts Scanalyzed . | . . . . . . . Part Schematics Acquired . | . . . . . . . Parts Damaged . | . . . . . . . Bothacking | -11 -10 -10 -10 -9 -8 -8 ------------ Run | Scr Mat Min Exi Min Mat Gar Used RIF Installer . | . . . . . . . Robots Hacked . | . . . . . . . Non-combat . | . . . . . . . Combat . | . . . . . . . Robot Hacks Applied . | . . . . . . . Relay Couplers Released 3 | . . . . . . 3 Machine Destruction 3 | . . . . . . 3 Fabnet Peak Effective % . | . . . . . . . Robots Rewired . | . . . . . . . Allies Hacked . | . . . . . . . Hacks Repelled . | . . . . . . . Allies | -11 -10 -10 -10 -9 -8 -8 -------- Run | Scr Mat Min Exi Min Mat Gar Total Allies 5 | . . 1 . 4 . . Largest Group 3 | . . 1 1 3 3 . Highest-Rated Group 63 | . . 31 31 63 63 . Highest-Rated Ally 31 | . . 31 31 31 31 . Total Orders . | . . . . . . . Ally Attacks 52 | . . 6 . 8 38 . Total Damage 699 | . . 105 . 97 497 . Kills 9 | . . 2 . 3 4 . Allies Corrupted . | . . . . . . . Allies Melted . | . . . . . . . Intel | -11 -10 -10 -10 -9 -8 -8 ------- Run | Scr Mat Min Exi Min Mat Gar Robot Analysis Total . | . . . . . . . Derelict Logs Recovered 1 | . . . . 1 . . Drone Launches . | . . . . . . . Drone Recoveries . | . . . . . . . Exploration | -11 -10 -10 -10 -9 -8 -8 ------------- Run | Scr Mat Min Exi Min Mat Gar Turns Passed 2854 | . 909 307 229 561 619 229 Spaces Moved 1778 | 1 392 171 218 475 396 125 Core 25 | . . . . . . 25 Treads 192 | . 187 . . . . 5 Legs 30 | 1 29 . . . . . Wheels 1491 | . 176 171 218 475 396 55 Hover 40 | . . . . . . 40 Flight . | . . . . . . . Fastest Speed 46 | 120 120 105 105 105 105 46 Average Speed 128 | 120 192 140 105 106 114 86 Slowest Speed 240 | 120 240 155 105 110 175 160 Overloaded Moves . | . . . . . . . Propulsion Burnouts . | . . . . . . . Robots Hopped . | . . . . . . . Cave-ins Triggered . | . . . . . . . Exploration Rate (%) 41 | 2 64 27 61 72 42 19 Regions Visited 6 Branch Regions 3 Pre-discovered Areas . | . . . . . . . Known Exits Taken 1 | . . . . . 1 . Unknown Exits Taken 5 | 1 1 1 1 1 . . Scrap Searched 1 | . . . . 1 . . Spaces Dug 2 | . . . . . 2 . Terrain Destroyed 80 | . . . . 18 46 16 Melee . | . . . . . . . Projectile . | . . . . . . . AOE 79 | . . . . 18 46 15 Terrain Rammed . | . . . . . . . Walls Destroyed . | . . . . . . . Machines Disabled . | . . . . . . . Actions | -11 -10 -10 -10 -9 -8 -8 --------- Run | Scr Mat Min Exi Min Mat Gar Total 2081 | . 460 197 218 519 485 202 Wait 53 | . 7 1 . 30 9 6 Move 1773 | . 391 170 217 474 396 125 Hop . | . . . . . . . Pick Up 16 | . 3 . 1 4 8 . Fast Attach 16 | . 3 . . 1 7 5 Attach 16 | . 3 1 . . 4 8 Detach 5 | . . . . . 4 1 Swap 11 | . . . . 4 4 3 Drop 14 | . 6 . . . 1 7 Fire 166 | . 44 25 . 6 52 39 Melee . | . . . . . . . Ram 1 | . 1 . . . . . Kick . | . . . . . . . Crush 2 | . 2 . . . . . Escape Stasis 8 | . . . . . . 8 Rewire . | . . . . . . . Trap . | . . . . . . . Miscellaneous . | . . . . . . . Route ------- -11/Scrapyard -10/Materials (discovered 3 exits: [*Mat x2] / [*Min]) -10/Mines -10/Exiles -9/Mines -8/Materials (discovered 3 exits: [*Fac x2] / Gar) -8/Garrison History --------- Turn | Location | Event 1 | -11/Scrapyard | Discovered new exit (range 0) 1 | -11/Scrapyard | Entered Materials 309 | -10/Materials | Build established: Mutant 586 | -10/Materials | Discovered new exit (range 16) 606 | -10/Materials | Core integrity fell below 50% 817 | -10/Materials | Discovered new exit (range 7) 898 | -10/Materials | Discovered new exit (range 9) 910 | -10/Materials | Entered Mines 981 | -10/Mines | Met a Derelict testing a Signal Generator 1159 | -10/Mines | Core integrity fell below 20% 1213 | -10/Mines | Deemed a non-threat by the Exiles lab entrance 1213 | -10/Mines | Discovered new exit (range 5) 1217 | -10/Mines | Entered Exiles 1217 | -10/Exiles | Accompanied by 1 ally 1246 | -10/Exiles | Met 8R-AWN 1262 | -10/Exiles | Met EX-HEX 1291 | -10/Exiles | Met EX-BIN 1303 | -10/Exiles | Aligned with FarCom system 1304 | -10/Exiles | Given EX-Vault access code 1330 | -10/Exiles | Opened EX-Vault 1338 | -10/Exiles | Found Chronowheel 1361 | -10/Exiles | Warned to stay clear of 0b10 Research branches 1394 | -10/Exiles | Met EX-DEC 1431 | -10/Exiles | Discovered new exit (range 15) 1446 | -10/Exiles | Left Exiles lab with Chronowheel 1446 | -10/Exiles | Entered Mines 1470 | -9/Mines | Met a Derelict bent on vengeance 1522 | -9/Mines | Assisted by bots powering up and referring to "LRC-V3" 1577 | -9/Mines | Received a Rocket Launcher from a helpful Derelict 1717 | -9/Mines | Learned 2 Materials zone layouts 1986 | -9/Mines | Discovered new exit (range 8) 1989 | -9/Mines | Received a Mining Laser from a helpful Derelict 2007 | -9/Mines | Entered Materials 2007 | -8/Materials | Accompanied by 3 allies 2007 | -8/Materials | Evolved 4 slots: Utility x4 2189 | -8/Materials | Lost 4 parts (1p1n1u1w) 2413 | -8/Materials | Discovered new exit (range 4) 2562 | -8/Materials | Garrison activated, responded to threat 2577 | -8/Materials | Discovered new exit (range 14) 2611 | -8/Materials | Destroyed 8 combat bots 2626 | -8/Materials | Identified exit to Garrison 2626 | -8/Materials | Entered Garrison 2750 | -8/Garrison | Core integrity fell below 50% 2775 | -8/Garrison | Lost 5 parts (2n1u2w) 2787 | -8/Garrison | Garrison Relay disabled 2827 | -8/Garrison | Lost 3 parts (1n2w) 2839 | -8/Garrison | Core integrity fell below 20% 2855 | -8/Garrison | Self-destructed Last Messages --------------- 02820_ HV Slug penetrates Wall. 02822_ Penetrated by Slug. 02822_ HV Slug penetrates Wall. 02825_ Penetrated by Slug. 02826_ HV Slug penetrates G-47 Trooper. 02826_ HV Slug penetrates Wall. 02828_ G-47 Trooper destroyed. 02828_ HV Slug penetrates H-55 Commando. 02828_ H-55 Commando suffers critical hit (Destroy). 02828_ H-55 Commando destroyed. 02828_ HV Slug penetrates Wall. 02830_ Wall collapses. 02834_ Acquired Lrn. Proton Cannon. 02837_ Triggered Alarm Trap. 02837_ An alarm sounds. 02839_ Dropped Lrn. Proton Cannon. 02840_ Dropped Med. Insulated Plating. 02840_ Dropped Mic. Nuclear Core. 02842_ Acquired Adv. System Shield. 02849_ Acquired 58 matter. Map ----- +----------------------------------------------------+ | ????????????????????????????????# ##??? ##?????? | | ????????????????????????????????" ?? ????? | | ????????????????????????????????" ??? ????? | | ????????????????????????????????" ?? ????? | | ????????????????????????????????" ?? ?????? | | ????????????????????????????????# #? ???????? | | ????????????????????????????????# ## ????????? | | ????????????????????????????????# ?????????? | | ????????????????????????????????# ??????????? | | ????????????????????????????????# ???????????? | | ????????????????????????????????# #????????????? | | ????????????????????????????????# #????????????? | | ????????????????????????????????# ##???????????? | | ????????????????????????????????# "+????????????? | | ????????????????????????????????# #????????????? | | ?????????????????????????????####= ##???????????? | | ????????????????????????????## ]!/ T#???????????? | | ########################++#### [!!*[##???????????? | | # g g [/ #????????????? | | # g l = #????????????? | | # =%[ #????????????? | | # #################### ## * ##????????????? | | # #??????????????????# ### # # # #????????????? | | #####??????????????????# "?##### # #????????????? | | ???????????????????????# "????? # #????????????? | | ???????????????????????# @"?????### #????????????? | | ???????????????????????# #???????? #????????????? | | ???????????????????????# #???????? #????????????? | | ???????????????????????# #???????? #????????????? | | ?????????????????????### #????????#?????????????? | | ?????????????????????#"# %##?????????????????????? | | ?????????????????????#" =;#?????????????????????? | | ?????????????????????# !![##?????????????????????? | | ?????????????????????#"!!%#??????????????????????? | | ?????????????????????# #[[#??????????????????????? | | ?????????????????????### *#??????????????????????? | | ???????????????????????#=##??????????????????????? | | ??????????????????????##%!####???????????????????? | | ??????????????????????#*=x #???????????????????? | | ????????????????????### ###?????????????????? | | ????????????????????#" x x ""#?????????????????? | | ????????????????????#"! x !"#?????????????????? | | ????????????????????#"! ++++ !"#?????????????????? | | ????????????????????#" + + |"#?????????????????? | | ????????????????????#" =+ + /"#?????????????????? | | ????????????????????#" ++++ ["#?????????????????? | | ????????????????????#"]* !"#?????????????????? | | ????????????????????#"!] ""#?????????????????? | | ????????????????????#"""! !="""#?????????????????? | | ????????????????????#""""""""""#?????????????????? | +----------------------------------------------------+ Best States ------------- Heat Dissipation 31 Energy Generation 15 Energy Capacity 250 Matter Stores 300 Matter Capacity 300 Sight Range 16 Terrain Scan Density 10 Armor Coverage 900 Resistance: EM 20 Evasion (%) 55 Recoil Reduction 2 Defensive Hacking 14 Item Schematics ----------------- None Robot Schematics ------------------ None Fabricated ------------ Nothing Alien Tech Used ----------------- None Achievements -------------- None Challenges ------------ None Game ------ Seed TrapImpulseGenerator Manual? 0 Play Time 00:20:26 Cumulative 261.5 hours Start 2022.07.30 @ 11:36:27 End 2022.07.31 @ 07:06:37 Sessions 5 Manual Loads 0 Difficulty Rogue Special Mode None Game No. 312 Rogue 312 Adventurer 0 Explorer 0 Win Type - Total 11 Types 8/0/2/1/0/0/0/0/0 Lore% 70 Gallery% 87 Achievement% 74 Wizard Run 0 Options --------- ASCII 0 Keyboard 0 Movement Numpad Keybinds 0 Fullscreen 1 Font 18/Terminus Map View 76x50 Tactical HUD 1 Map Filters NONE Filters NONE Steam 1 RUN: 69d08cd6-e87d-4257-bb4d-63f1a520ebc6